bitfinex-derivatives/quotes_SOLF0:USTF0_20250319
["timestamp","ask_amount","ask_price","bid_price","bid_amount"]
[1742407775343,44.96728716,129.48,129.42,0.05779429]
[1742407775544,7.726,129.43,129.42,0.05779429]
[1742407775844,0.04960456,129.44,129.34,40.93878716]
[1742407776041,7.725,129.45,129.4,7.7272]
[1742407776443,45.12548716,129.48,129.37,40.93878716]
[1742407776746,20.46939358,129.46,129.35,40.93878716]
[1742407776944,0.0512986,129.44,129.41,0.05023359]
[1742407777344,0.0512986,129.44,129.41,40.98902075]
[1742407777536,0.0512986,129.44,129.41,0.05023359]
[1742407778646,7.7263,129.43,129.41,0.05023359]
[1742407778947,0.0512986,129.44,129.41,0.05023359]
[1742407780853,0.0512986,129.44,129.42,7.7262]
[1742407781151,0.0512986,129.44,129.41,0.05023359]
[1742407781353,206.09655286,129.48,129.41,0.05023359]
[1742407781756,231.88,129.49,129.41,0.05023359]
[1742407781956,40.93878716,129.47,129.37,31.3252716]
[1742407782151,40.93878716,129.44,129.37,31.3252716]
[1742407782451,255.05,129.49,129.37,11.8484716]
[1742407782452,40.86961361,129.42,129.37,11.8484716]
[1742407782654,7.729,129.38,129.37,5.3555716]
[1742407783255,7.7296,129.37,129.36,0.0543968]
[1742407784052,0.05437057,129.39,129.33,28.2003816]
[1742407784253,277.02358716,129.43,129.33,28.2003816]
[1742407784455,7.7308,129.35,129.33,28.2003816]
[1742407784755,40.93878716,129.39,129.33,28.2003816]
[1742407784952,277.02358716,129.43,129.33,28.2003816]
[1742407785257,4.2048,129.43,129.35,40.99547012]
[1742407785457,11.9311,129.43,129.35,40.93878716]
[1742407785755,4.2048,129.43,129.35,40.93878716]
[1742407786352,4.2048,129.43,129.32,44.97168716]
[1742407786553,0.05193732,129.4,129.3,11.05012959]
[1742407786755,40.93878716,129.41,129.3,11.05012959]
[1742407787150,40.93878716,129.41,129.3,222.50964928]
[1742407787351,40.93878716,129.41,129.36,17.49174054]
[1742407787553,231.88,129.42,129.35,21.7990816]
[1742407787554,40.93878716,129.38,129.35,21.7990816]
[1742407787755,40.93878716,129.38,129.35,8.8142816]
[1742407788062,48.67878716,129.38,129.34,82.7485576]
[1742407788249,40.93878716,129.38,129.34,82.7485576]
[1742407788450,231.88,129.42,129.34,82.7485576]
[1742407788655,231.88,129.42,129.35,7.7303]
[1742407788855,231.88,129.42,129.34,82.7485576]
[1742407789156,0.05020497,129.4,129.37,0.05621485]
[1742407790355,0.05020497,129.4,129.39,7.7284]
[1742407791059,231.88,129.47,129.37,0.05621485]
[1742407791257,231.88,129.47,129.36,126.75140591]
[1742407791660,7.7273,129.41,129.36,126.75140591]
[1742407792261,0.05260602,129.4,129.37,0.05099202]
[1742407792462,131.84557865,129.47,129.37,125.15494255]
[1742407792665,131.84557865,129.47,129.37,125.10395053]
[1742407793061,7.727,129.42,129.37,132.83315053]
[1742407793261,69.08,129.43,129.37,132.83315053]
[1742407793456,69.08,129.43,129.38,117.52653293]
[1742407793661,0.05741098,129.41,129.39,0.05032165]
[1742407793865,65.6087591,129.43,129.39,0.05032165]
[1742407794365,65.6087591,129.43,129.39,7.77832165]
[1742407794568,68.72,129.45,129.39,0.05032165]
[1742407794862,14.80341198,129.45,129.4,181.10258731]
[1742407795069,0.02213776,129.43,129.41,0.05125291]
[1742407795961,7.7266,129.42,129.41,0.05125291]
[1742407796162,241.24436581,129.47,129.41,0.05125291]
[1742407797163,7.7266,129.42,129.41,0.05125291]
[1742407797365,7.7266,129.42,129.41,49.92924291]
[1742407797766,241.24436581,129.47,129.41,49.92924291]
[1742407798163,108.67878716,129.47,129.41,49.92924291]
[1742407798760,7.7263,129.43,129.41,49.92924291]
[1742407799164,108.67878716,129.47,129.41,49.92924291]
[1742407799165,67.74,129.47,129.41,49.92924291]
[1742407799765,67.74,129.47,129.42,49.87799]
[1742407799971,7.7257,129.44,129.42,49.87799]
[1742407800172,67.74,129.47,129.42,49.87799]
[1742407800372,7.726,129.43,129.42,49.87799]
[1742407800561,7.726,129.43,129.42,36.51199]
[1742407800562,74.726,129.43,129.42,36.51199]
[1742407800762,298.84,129.43,129.41,0.05046276]
[1742407801073,231.84,129.48,129.43,60.4251837]
[1742407801267,40.93878716,129.5,129.43,60.4251837]
[1742407801472,7.7229,129.49,129.44,0.05866388]
[1742407801678,7.7229,129.49,129.43,60.4251837]
[1742407801867,7.7209,129.52,129.45,128.23051467]
[1742407802068,231.84,129.54,129.45,128.23051467]
[1742407802373,231.84,129.54,129.48,0.0522104]
[1742407802968,20.46939358,129.6,129.48,0.0522104]
[1742407803173,40.93878716,129.6,129.48,40.99099756]
[1742407803374,40.93878716,129.58,129.49,7.7221]
[1742407803570,40.93878716,129.58,129.53,0.05427059]
[1742407803873,231.84,129.62,129.53,0.05427059]
[1742407804068,40.93878716,129.61,129.53,0.05427059]
[1742407804268,40.93878716,129.57,129.45,128.18066987]
[1742407804470,40.93878716,129.57,129.46,40.93878716]
[1742407804669,0.0545834,129.52,129.46,40.93878716]
[1742407805370,0.0545834,129.52,129.51,213.63444978]
[1742407806072,40.93878716,129.61,129.51,213.63444978]
[1742407806273,40.93878716,129.59,129.51,213.63444978]
[1742407806474,40.93878716,129.57,129.51,213.63444978]
[1742407807069,40.93876763,129.53,129.51,201.53414978]
[1742407807266,40.93876763,129.53,129.49,275.67523133]
[1742407807471,40.93878716,129.5,129.49,250.09133133]
[1742407807771,272.69878716,129.5,129.44,55.99863678]
[1742407808076,272.69878716,129.5,129.45,127.72071078]
[1742407808271,7.7242,129.46,129.45,127.72071078]
[1742407808584,0.05137079,129.48,129.45,127.72071078]
[1742407808764,7.77477079,129.48,129.45,127.72071078]
[1742407808965,0.05137079,129.48,129.45,127.72071078]
[1742407809167,40.93878716,129.47,129.45,127.72071078]
[1742407809366,7.7242,129.46,129.45,127.72071078]
[1742407809767,76.6442,129.46,129.45,127.72071078]
[1742407810175,84.3642,129.46,129.45,90.35251078]
[1742407810371,76.64,129.46,129.4,341.31077467]
[1742407810670,40.93878716,129.42,129.4,341.31077467]
[1742407810874,7.7272,129.41,129.4,341.31077467]
[1742407811072,231.74,129.42,129.4,75.22596053]
[1742407811471,300.38,129.47,129.4,75.22596053]
[1742407811667,0.0570476,129.42,129.4,75.28437206]
[1742407811864,300.38,129.47,129.4,75.28437206]
[1742407812068,0.05408387,129.42,129.4,75.28437206]
[1742407812270,231.76,129.61,129.41,40.93878716]
[1742407812470,231.76,129.61,129.47,20.46939358]
[1742407812670,0.05365105,129.51,129.46,20.46939358]
[1742407812870,30.88062763,129.5,129.48,0.05249886]
[1742407813078,30.93504496,129.5,129.48,0.05249886]
[1742407813475,82.34834036,129.51,129.48,20.52189244]
[1742407814077,82.34834036,129.51,129.49,7.722]
[1742407814277,82.34834036,129.51,129.48,40.99128602]
[1742407814678,82.34834036,129.51,129.48,0.05249886]
[1742407814877,82.40384852,129.51,129.48,0.05249886]
[1742407815178,82.40384852,129.51,129.49,7.7224]
[1742407815382,82.40384852,129.51,129.48,0.05249886]
[1742407815678,0.05550816,129.51,129.48,0.05249886]
[1742407815878,40.99429532,129.51,129.42,4.1224]
[1742407816178,40.93878716,129.51,129.42,4.1224]
[1742407816875,40.93878716,129.51,129.43,7.7259]
[1742407817080,40.93878716,129.51,129.42,4.1224]
[1742407817378,0.05899158,129.48,129.45,0.05534679]
[1742407818381,7.78199158,129.48,129.45,0.05534679]
[1742407818587,108.63777874,129.48,129.38,4.1441]
[1742407818880,108.57878716,129.48,129.38,4.1441]
[1742407819082,108.57878716,129.48,129.38,45.08288716]
[1742407819283,67.64,129.48,129.38,45.08288716]
[1742407819783,67.64,129.48,129.44,7.725]
[1742407819985,0.05364976,129.44,129.42,0.05895798]
[1742407820179,67.64,129.48,129.38,4.1441]
[1742407820372,0.05707448,129.44,129.42,0.05915876]
[1742407821384,0.05707448,129.44,129.43,7.726]
[1742407821579,7.448e-05,129.44,129.43,7.726]
[1742407821984,7.448e-05,129.44,129.43,15.446]
[1742407822881,298.72,129.54,129.51,7.7211]
[1742407823086,298.72,129.54,129.45,40.93878716]
[1742407823281,231.74,129.54,129.45,40.93878716]
[1742407823889,3.9674,129.56,129.48,40.93878716]
[1742407824087,0.04955767,129.51,129.48,40.98819863]
[1742407824285,231.72,129.59,129.48,40.98819863]
[1742407824585,231.72,129.59,129.51,40.93878716]
[1742407825188,231.72,129.59,129.48,40.93878716]
[1742407825485,40.98855836,129.56,129.54,0.05519349]
[1742407825682,107.06855836,129.56,129.53,7.7199]
[1742407825879,66.08,129.56,129.46,44.85098716]
[1742407826077,231.72,129.59,129.48,40.93878716]
[1742407826279,297.68,129.59,129.54,7.7194]
[1742407826477,297.68,129.59,129.48,40.93878716]
[1742407826875,0.0585285,129.55,129.54,7.7189]
[1742407827084,231.72,129.59,129.5,40.93878716]
[1742407827389,231.72,129.59,129.58,7.717]
[1742407828187,0.05863299,129.6,129.59,7.7164]
[1742407828989,3.299e-05,129.6,129.59,7.7164]
[1742407829384,3.299e-05,129.6,129.58,7.7167]
[1742407829688,3.299e-05,129.6,129.57,0.05443532]
[1742407829887,3.299e-05,129.6,129.59,7.7164]
[1742407830378,3.299e-05,129.6,129.57,0.05443532]
[1742407832087,7.71593299,129.6,129.57,0.05443532]
[1742407832282,40.93882015,129.6,129.57,0.05443532]
[1742407833187,7.717,129.58,129.57,0.05443532]
[1742407833389,272.53878716,129.58,129.51,4.0385]
[1742407833684,7.7192,129.55,129.49,3.9844]
[1742407833888,272.53878716,129.58,129.49,3.9844]
[1742407834285,272.53878716,129.58,129.51,7.7211]
[1742407834484,0.05700604,129.55,129.52,0.05283816]
[1742407835782,231.6,129.67,129.53,20.46939358]
[1742407835982,8.1241,129.66,129.53,40.93878716]
[1742407836187,8.1241,129.66,129.54,3.9624]
[1742407836587,7.7145,129.63,129.54,3.9624]
[1742407836988,0.05364491,129.6,129.57,0.0593373]
[1742407837187,0.05364491,129.6,129.54,3.9624]
[1742407837487,0.05073778,129.58,129.57,7.77381314]
[1742407837691,7.7149,129.62,129.57,0.05661314]
[1742407837889,0.05251464,129.59,129.57,0.05661314]
[1742407838090,0.05251464,129.59,129.58,7.7166]
[1742407838792,0.05251464,129.59,129.57,7.77371314]
[1742407838992,0.05251464,129.59,129.57,0.05661314]
[1742407839194,0.05251464,129.59,129.58,7.717]
[1742407839390,1.464e-05,129.59,129.58,7.717]
[1742407843787,1.464e-05,129.59,129.57,7.77421314]
[1742407844297,1.464e-05,129.59,129.57,0.05661314]
[1742407845295,1.464e-05,129.59,129.58,7.717]
[1742407845491,1.464e-05,129.59,129.58,11.6581]
[1742407846596,1.464e-05,129.59,129.58,15.8623]
[1742407846997,1.464e-05,129.59,129.58,23.5823]
[1742407847201,15.4117,129.77,129.67,7.7114]
[1742407847400,40.93878716,129.72,129.62,64.1]
[1742407847593,40.93878716,129.72,129.62,64.26]
[1742407847900,7.7093,129.71,129.62,64.26]
[1742407848093,40.93878716,129.69,129.62,64.26]
[1742407848293,105.03878716,129.71,129.62,64.26]
[1742407848497,105.03878716,129.71,129.64,0.05764699]
[1742407849400,40.93878716,129.74,129.64,0.05764699]
[1742407849599,7.7084,129.73,129.64,63.96]
[1742407849801,40.93878716,129.74,129.68,0.04867508]
[1742407850000,40.93878716,129.74,129.69,7.7103]
[1742407850201,48.64668716,129.74,129.68,0.04867508]
[1742407850397,48.64668716,129.74,129.69,7.7102]
[1742407850594,48.64668716,129.74,129.68,0.04867508]
[1742407850796,7.7082,129.73,129.68,0.04867508]
[1742407851093,40.93878716,129.74,129.68,0.04867508]
[1742407851494,7.7085,129.73,129.68,7.75947508]
[1742407851790,75.7335,129.76,129.68,0.04867508]
[1742407851990,7.7072,129.75,129.7,7.7095]
[1742407852194,75.7335,129.76,129.65,4.2077]
[1742407852195,8.1857,129.76,129.71,0.0578357]
[1742407854096,231.46,129.78,129.71,0.0578357]
[1742407854399,231.42,129.84,129.71,0.0578357]
[1742407854699,40.93878716,129.83,129.7,40.93878716]
[1742407854896,40.93878716,129.83,129.76,0.05072576]
[1742407855097,40.93878716,129.8,129.76,0.05072576]
[1742407855292,7.7049,129.79,129.69,63.44]
[1742407855603,7.7049,129.79,129.73,0.04924204]
[1742407855791,7.7049,129.79,129.74,7.7072]
[1742407855998,40.93878716,129.8,129.73,0.04924204]
[1742407856499,231.42,129.84,129.74,63.62]
[1742407856807,231.42,129.84,129.74,108.54628716]
[1742407857001,231.42,129.84,129.8,7.7037]
[1742407857197,40.93878716,129.83,129.74,67.6075]
[1742407857506,71.0428,129.82,129.81,0.05328895]
[1742407857702,71.0428,129.82,129.76,7.706]
[1742407858007,63.34,129.82,129.8,7.76115373]
[1742407858207,40.93878716,129.83,129.74,3.9875]
[1742407858503,231.42,129.84,129.8,0.05777609]
[1742407858705,231.42,129.84,129.74,91.36475633]
[1742407858901,40.93878716,129.86,129.81,0.05384217]
[1742407859101,231.3,129.94,129.8,40.93878716]
[1742407859305,231.3,129.94,129.82,0.05507475]
[1742407859499,20.46939358,129.92,129.81,71.0964]
[1742407859699,20.46939358,129.87,129.85,0.05374667]
[1742407859906,40.93878716,129.87,129.85,0.05374667]
[1742407860107,40.93878716,129.89,129.85,0.05374667]
[1742407860308,4.0416,129.9,129.85,0.05374667]
[1742407860504,40.93878716,129.92,129.87,7.6995]
[1742407860709,40.93878716,129.92,129.8,40.93878716]
[1742407861008,62.9,129.93,129.88,7.75236607]
[1742407861311,62.9,129.93,129.89,0.05490894]
[1742407861506,40.93878716,129.91,129.83,42.41926917]
[1742407861810,40.93878716,129.91,129.9,0.04921048]
[1742407862008,62.9,129.93,129.83,42.41926917]
[1742407862211,272.23878716,129.94,129.89,0.0499323]
[1742407862504,4.0416,129.97,129.89,0.0499323]
[1742407862703,4.0416,129.97,129.86,103.65878716]
[1742407862897,4.0416,129.97,129.92,0.0493526]
[1742407863101,231.2,129.99,129.93,7.6958]
[1742407863306,231.2,129.99,129.9,62.66]
[1742407863503,231.2,129.99,129.95,0.05311517]
[1742407863702,280.60998716,130.05,129.95,40.99190233]
[1742407863903,44.91428716,130.08,129.95,40.99190233]
[1742407864113,44.91428716,130.08,129.98,40.93878716]
[1742407864309,3.9755,130.08,130.0,0.05041446]
[1742407864508,231.2,130.1,130.0,0.05041446]
[1742407864710,8.4712,130.12,130.01,40.93878716]
[1742407864907,20.46939358,130.17,130.07,40.93878716]
[1742407865108,3.9755,130.19,130.08,64.7]
[1742407865403,3.9755,130.19,130.11,0.05365754]
[1742407865807,40.93878716,130.17,130.08,4.0742]
[1742407866008,40.93878716,130.17,130.14,0.05768297]
[1742407866205,40.93878716,130.16,130.05,64.64]
[1742407866711,235.3713,130.18,130.07,40.93878716]
[1742407867113,231.08,130.24,130.13,40.93878716]
[1742407867313,231.08,130.24,130.14,64.72]
[1742407867514,0.05476345,130.2,130.16,40.93878716]
[1742407867711,0.05476345,130.2,130.18,0.05707913]
[1742407868110,40.93878716,130.19,130.11,10.60481729]
[1742407868714,40.93878716,130.16,130.11,10.60481729]
[1742407869014,40.93878716,130.22,130.11,10.60481729]
[1742407869213,7.6825,130.17,130.11,10.60481729]
[1742407869417,0.05656416,130.15,130.12,0.05355431]
[1742407871217,65.09656416,130.15,130.12,0.05355431]
[1742407871912,0.05656416,130.15,130.12,0.05355431]
[1742407872420,40.93878716,130.28,130.12,48.67234147]
[1742407872716,40.93878716,130.25,130.12,44.93678716]
[1742407872908,40.93878716,130.22,130.12,3.998]
[1742407873109,40.93878716,130.22,130.11,230.8]
[1742407873306,7.6801,130.21,130.13,7.6839]
[1742407873512,0.05593606,130.18,130.15,0.05247162]
[1742407874316,40.93878716,130.16,130.15,0.05247162]
[1742407874623,40.93878716,130.16,130.06,295.52]
[1742407874824,64.82,130.15,130.04,40.93878716]
[1742407875119,40.93878716,130.22,130.1,40.93878716]
[1742407875309,234.8778,130.23,130.11,64.82]
[1742407875509,234.8778,130.23,130.13,7.6839]
[1742407875709,234.8778,130.23,130.16,0.05752397]
[1742407876922,0.05385937,130.21,130.16,0.05752397]
[1742407877123,7.6805,130.2,130.16,0.05752397]
[1742407877324,64.34,130.2,130.16,0.05752397]
[1742407877619,7.6819,130.18,130.16,0.05752397]
[1742407877822,64.34,130.2,130.16,0.05752397]
[1742407878022,0.04886304,130.18,130.16,0.05752397]
[1742407878221,234.8778,130.23,130.16,0.05752397]
[1742407878419,0.04972122,130.18,130.16,0.05752397]
[1742407878620,40.93878716,130.22,130.16,0.05752397]
[1742407878823,0.05622512,130.18,130.16,0.05752397]
[1742407879024,4.0936,130.26,130.16,105.29631113]
[1742407879322,7.6775,130.25,130.19,7.6805]
[1742407879523,4.0936,130.26,130.16,105.23878716]
[1742407879824,40.93878716,130.27,130.16,105.23878716]
[1742407880028,271.55878716,130.28,130.16,105.23878716]
[1742407880230,68.5146,130.32,130.2,0.05790863]
[1742407880429,7.6746,130.3,130.24,7.6777]
[1742407880621,4.2746,130.32,130.2,0.05790863]
[1742407880622,4.2746,130.32,130.22,40.93878716]
[1742407880821,8.1068,130.35,130.26,0.05533567]
[1742407881024,8.1068,130.35,130.21,68.3563]
[1742407881025,48.63605342,130.35,130.23,40.52925342]
[1742407881324,48.63605342,130.35,130.29,0.05662815]
[1742407881630,40.52925342,130.32,130.29,0.05662815]
[1742407882024,64.2,130.31,130.21,4.2163]
[1742407882225,40.52925342,130.29,130.17,335.28925342]
[1742407882428,40.52925342,130.26,130.17,294.76]
[1742407882626,64.22,130.25,130.16,4.0859]
[1742407883022,7.6781,130.24,130.17,7.6817]
[1742407883226,64.22,130.25,130.14,104.74925342]
[1742407883227,0.05503281,130.22,130.19,0.05070002]
[1742407884027,40.52925342,130.23,130.19,0.05070002]
[1742407884221,40.52925342,130.23,130.11,335.16925342]
[1742407884427,7.6814,130.19,130.12,7.6846]
[1742407884727,40.52925342,130.21,130.08,4.0438]
[1742407884921,230.48,130.19,130.08,4.0438]
[1742407885123,230.48,130.19,130.08,8.2953]
[1742407885318,40.52925342,130.16,130.07,10.60481729]
[1742407885523,0.05041057,130.15,130.12,0.0570891]
[1742407885724,234.66350241,130.19,130.12,0.0570891]
[1742407886828,234.6553,130.24,130.14,40.52925342]
[1742407887132,68.3227,130.26,130.17,40.52925342]
[1742407887330,68.3227,130.26,130.18,0.05241767]
[1742407887630,4.2027,130.26,130.17,40.52925342]
[1742407887831,4.2027,130.26,130.21,0.04978488]
[1742407888031,4.2027,130.26,130.22,7.6789]
[1742407888231,294.52,130.29,130.22,7.6789]
[1742407888433,230.5,130.29,130.21,0.04978488]
[1742407888632,271.02925342,130.29,130.17,40.52925342]
[1742407888933,40.52925342,130.26,130.24,0.05112099]
[1742407889129,63.92,130.25,130.24,0.05112099]
[1742407889331,63.92,130.25,130.15,64.1]
[1742407889535,63.92,130.25,130.23,0.0508616]
[1742407889833,63.92,130.25,130.23,0.0538185]
[1742407890226,230.5,130.29,130.23,0.0538185]
[1742407890622,238.1754,130.29,130.23,0.0538185]
[1742407890827,230.5,130.29,130.23,0.0538185]
[1742407891327,271.02925342,130.29,130.23,0.0538185]
[1742407892431,238.1751,130.29,130.23,7.7319185]
[1742407892637,230.5,130.29,130.23,0.0538185]
[1742407892837,4.3183,130.32,130.23,63.4738185]
[1742407893026,4.3183,130.32,130.24,4.2942]
[1742407893228,44.84755342,130.32,130.2,275.07955342]
[1742407893428,7.6762,130.27,130.26,0.0570558]
[1742407893627,230.42,130.28,130.17,63.34]
[1742407893834,40.52925342,130.27,130.17,63.34]
[1742407894138,40.52925342,130.27,130.15,274.95965342]
[1742407894339,40.52925342,130.27,130.15,338.15965342]
[1742407894740,0.05403122,130.22,130.2,0.0548948]
[1742407895137,270.94925342,130.21,130.14,42.41926917]
[1742407895337,63.0,130.2,130.14,42.41926917]
[1742407895537,40.52925342,130.18,130.14,42.41926917]
[1742407896439,40.52925342,130.18,130.13,85.08671105]
[1742407896440,7.6838,130.14,130.13,35.45187648]
[1742407896635,333.80925342,130.15,130.12,72.42361105]
[1742407896830,341.48925342,130.15,130.12,60.61312826]
[1742407897029,341.48925342,130.15,130.11,100.05429926]
[1742407897238,40.52925342,130.12,130.09,240.53682576]
[1742407897437,48.21545342,130.1,130.09,240.53682576]
[1742407897735,341.57545342,130.1,130.09,240.53682576]
[1742407897936,341.57545342,130.1,130.08,265.75699843]
[1742407897937,7.6868,130.09,130.08,265.75699843]
[1742407898134,7.6868,130.09,130.08,128.71903068]
[1742407898341,341.56925342,130.1,130.08,128.71903068]
[1742407898342,0.05363957,130.11,130.08,128.71903068]
[1742407898640,40.52925342,130.2,130.09,20.26462671]
[1742407898833,271.00925342,130.2,130.08,191.37903068]
[1742407899029,278.68985342,130.2,130.08,191.3223873]
[1742407899335,271.00925342,130.2,130.09,40.52925342]
[1742407899532,230.48,130.2,130.08,191.3223873]
[1742407899839,0.04863682,130.16,130.13,0.05590209]
[1742407900630,230.54863682,130.16,130.13,0.05590209]
[1742407900832,41.37586786,130.14,130.13,0.00226252]
[1742407902142,34.89506786,130.14,130.13,7.68666252]
[1742407902341,0.04863682,130.16,130.13,40.53151594]
[1742407902536,230.5,130.26,130.14,4.1962]
[1742407902836,238.1771,130.26,130.16,40.50925342]
[1742407903036,230.5,130.26,130.16,40.50925342]
[1742407903236,238.1768,130.26,130.18,7.6813]
[1742407903431,230.5,130.26,130.18,7.6813]
[1742407903632,7.6765,130.27,130.18,7.6813]
[1742407903832,0.0537047,130.23,130.21,0.05441855]
[1742407904031,0.0537047,130.23,130.19,35.3324633]
[1742407904235,282.79792225,130.25,130.19,40.52925342]
[1742407905240,0.05190577,130.23,130.21,0.05639696]
[1742407906342,7.73190577,130.23,130.14,4.1962]
[1742407906543,61.34,130.22,130.12,61.36]
[1742407906844,230.48,130.21,130.1,40.52925342]
[1742407907035,234.4935,130.21,130.1,40.52925342]
[1742407907443,0.05241311,130.17,130.14,0.05161586]
[1742407907643,61.17241311,130.17,130.14,0.05161586]
[1742407908343,68.85491311,130.17,130.14,0.05161586]
[1742407908544,61.17241311,130.17,130.14,0.05161586]
[1742407909245,101.70166653,130.17,130.11,32.62811087]
[1742407909636,61.17241311,130.17,130.11,32.62811087]
[1742407910040,61.17241311,130.17,130.09,7.6863]
[1742407910236,61.12,130.17,130.13,0.05282676]
[1742407910442,0.05276592,130.14,130.13,0.05282676]
[1742407912146,234.4935,130.21,130.13,40.58208018]
[1742407912447,234.4935,130.21,130.13,40.52925342]
[1742407912641,234.4935,130.21,130.11,64.1927]
[1742407912835,275.02275342,130.21,130.11,3.9727]
[1742407913442,0.05245369,130.17,130.15,0.05451749]
[1742407913641,59.81245369,130.17,130.15,0.05451749]
[1742407913843,67.49465369,130.17,130.15,0.05451749]
[1742407914042,59.81245369,130.17,130.15,0.05451749]
[1742407914243,59.81245369,130.17,130.15,0.00175157]
[1742407914443,7.6826,130.16,130.15,0.00175157]
[1742407914742,0.05245369,130.17,130.15,0.00175157]
[1742407915044,7.73455369,130.17,130.15,0.00175157]
[1742407915245,0.05245369,130.17,130.15,0.00175157]
[1742407915949,0.05245369,130.17,130.08,4.1701]
[1742407915950,59.3,130.16,130.08,4.1701]
[1742407916143,271.04925342,130.15,130.07,26.07590292]
[1742407916343,7.6862,130.1,130.07,26.07590292]
[1742407916746,230.52,130.09,130.06,26.07590292]
[1742407916941,238.2072,130.09,130.06,26.07590292]
[1742407917144,230.57790853,130.09,130.06,26.12654027]
[1742407918148,238.26510853,130.09,130.06,0.05063735]
[1742407918545,230.57790853,130.09,130.06,0.05063735]
[1742407919553,230.56,130.14,130.06,40.57989077]
[1742407919752,230.56,130.14,130.06,40.52925342]
[1742407920252,230.56,130.14,130.09,40.52925342]
[1742407920953,0.05111161,130.13,130.1,0.05041385]
[1742407923946,0.05111161,130.13,130.12,7.685]
[1742407924154,230.56,130.19,130.11,102.57695342]
[1742407924354,4.2409,130.21,130.11,102.57695342]
[1742407924750,4.2409,130.21,130.11,62.0477]
[1742407925147,7.6788,130.23,130.12,40.52925342]
[1742407925343,0.05799965,130.17,130.15,40.57979903]
[1742407925548,230.56,130.24,130.15,40.52925342]
[1742407925750,230.56,130.24,130.12,98.28925342]
[1742407926048,40.52925342,130.23,130.12,98.28925342]
[1742407926250,7.6799,130.21,130.12,98.28925342]
[1742407926444,57.74,130.21,130.13,7.6843]
[1742407926645,0.05754455,130.18,130.15,0.05561933]
[1742407929956,7.73944455,130.18,130.15,0.05561933]
[1742407930151,0.05754455,130.18,130.15,0.05561933]
[1742407933758,0.05754455,130.18,130.16,7.6826]
[1742407933962,0.05754455,130.18,130.15,0.05561933]
[1742407935359,230.56,130.24,130.17,40.52925342]
[1742407935559,40.52925342,130.28,130.17,40.52925342]
[1742407935560,230.52,130.29,130.17,40.52925342]
[1742407935755,230.52,130.29,130.2,40.52925342]
[1742407936055,60.0136,130.33,130.23,40.52925342]
[1742407936556,0.05082917,130.29,130.27,0.05326075]
[1742407936953,0.05082917,130.29,130.27,7.72896075]
[1742407937151,0.05082917,130.29,130.27,0.05326075]
[1742407937355,230.52,130.34,130.27,0.05326075]
[1742407937555,238.1924,130.34,130.28,7.6756]
[1742407937751,230.52,130.34,130.28,7.6756]
[1742407937950,230.52,130.34,130.26,40.52925342]
[1742407938156,40.52925342,130.32,130.24,55.76]
[1742407938361,55.58,130.31,130.21,59.8253]
[1742407938659,7.6761,130.28,130.27,0.05124421]
[1742407939457,55.58,130.31,130.27,0.05124421]
[1742407939859,63.67925342,130.29,130.16,7.6824]
[1742407940060,4.1362,130.3,130.11,84.7607861]
[1742407940061,40.52925342,130.26,130.13,59.4016]
[1742407940254,55.26,130.25,130.13,63.5185]
[1742407940455,7.6782,130.24,130.15,40.52925342]
[1742407940655,305.88462671,130.28,130.15,40.52925342]
[1742407940868,305.88462671,130.28,130.18,40.52925342]
[1742407941055,0.05611136,130.23,130.2,0.05305341]
[1742407941257,326.00925342,130.22,130.2,0.05305341]
[1742407941563,285.48,130.22,130.13,35.90219479]
[1742407942362,54.92,130.25,130.15,40.52925342]
[1742407942570,4.1362,130.3,130.21,40.52925342]
[1742407942864,4.1362,130.3,130.22,4.1985]
[1742407943058,0.05202588,130.27,130.24,0.05654119]
[1742407944764,0.05202588,130.27,130.24,7.73444119]
[1742407944970,0.05202588,130.27,130.24,0.05654119]
[1742407945159,285.12,130.32,130.24,0.05654119]
[1742407945354,285.12,130.32,130.27,7.676]
[1742407945553,230.44,130.32,130.25,54.44]
[1742407945753,230.44,130.32,130.27,7.6757]
[1742407946258,0.0520799,130.31,130.3,7.6741]
[1742407946763,0.0520799,130.31,130.29,7.6747]
[1742407946964,0.0520799,130.31,130.28,0.04924231]
[1742407947864,0.0520799,130.31,130.3,7.6744]
[1742407948257,230.4,130.37,130.28,54.02924231]
[1742407948663,230.4,130.37,130.3,40.52925342]
[1742407948862,230.4,130.37,130.31,3.9037]
[1742407949053,20.26462671,130.36,130.25,40.52925342]